bitfinex/quotes_ETHUSD_20240819
["timestamp","ask_amount","ask_price","bid_price","bid_amount"]
[1724069248403,3.86081,2590.2,2589.7,2.4283]
[1724069248564,7.7216,2590.2,2589.7,2.4283]
[1724069248891,3.86093,2590.1,2589.7,2.4283]
[1724069249868,3.86076,2590.2,2589.7,3.0307973]
[1724069250069,3.8607,2590.3,2589.7,3.0307973]
[1724069250273,3.8607,2590.3,2589.8,0.30307973]
[1724069250658,3.86041,2590.4,2589.8,0.30307973]
[1724069250859,3.86041,2590.4,2589.8,3.30307973]
[1724069251090,2.3901,2591.0,2590.0,2.2934]
[1724069251091,3.86007,2590.7,2590.0,2.2934]
[1724069251440,3.86017,2590.6,2590.0,2.2934]
[1724069251605,3.86007,2590.7,2590.0,2.2934]
[1724069251961,3.86056,2590.3,2590.0,2.2934]
[1724069252159,3.86073,2590.2,2589.9,3.0]
[1724069252484,3.86073,2590.2,2589.7,2.4557]
[1724069253804,3.86103,2590.0,2589.7,2.4557]
[1724069254015,3.86103,2590.0,2589.4,5.392]
[1724069254373,3.86094,2590.1,2589.4,5.392]
[1724069254573,0.10403067,2589.9,2589.4,5.392]
[1724069254823,3.86094,2590.1,2589.4,5.392]
[1724069254975,0.1048027,2589.8,2589.4,5.392]
[1724069255179,3.86094,2590.1,2589.4,5.392]
[1724069255378,0.1048027,2589.7,2589.4,5.392]
[1724069255572,3.86094,2590.1,2589.4,5.392]
[1724069255887,3.86094,2590.1,2589.4,2.392]
[1724069256092,0.1048027,2590.0,2589.5,0.5392]
[1724069256411,0.1048027,2590.0,2589.5,3.5392]
[1724069256594,0.1048027,2590.0,2589.7,2.4069]
[1724069256794,3.86063,2590.3,2589.7,5.4069]
[1724069257101,3.86049,2590.4,2589.7,5.4069]
[1724069257307,0.10495357,2590.3,2589.7,6.29138565]
[1724069258419,3.96552357,2590.3,2589.7,6.29138565]
[1724069258592,3.86073,2590.2,2589.7,5.4069]
[1724069259201,0.10495357,2590.1,2589.7,5.4069]
[1724069260452,3.86124,2589.9,2589.5,7.2401]
[1724069260594,3.86102,2590.0,2589.6,3.0]
[1724069260793,0.10495357,2589.8,2589.6,3.0]
[1724069260995,3.86118,2589.9,2589.6,3.0]
[1724069261196,0.10495357,2589.7,2589.6,3.0]
[1724069261438,3.86118,2589.9,2589.6,3.0]
[1724069261749,3.86118,2589.9,2589.4,2.3185]
[1724069262037,0.10495357,2589.8,2589.4,2.3185]
[1724069262339,0.10495357,2589.8,2589.4,3.25345]
[1724069262499,0.10495357,2589.8,2589.5,3.0]
[1724069262699,3.861,2590.0,2589.5,3.0]
[1724069262931,0.10495357,2589.9,2589.5,3.0]
[1724069263138,0.10495357,2589.9,2589.5,3.48873565]
[1724069263298,3.861,2590.0,2589.5,3.48873565]
[1724069263497,0.10495357,2589.9,2589.5,3.0]
[1724069263697,0.10495357,2589.9,2589.4,2.3185]
[1724069264015,0.10495357,2589.9,2589.3,3.0]
[1724069264016,0.10495357,2589.9,2589.8,4.031]
[1724069264227,0.10495357,2589.9,2589.8,10.56327]
[1724069264740,3.8602,2590.6,2589.8,8.21857]
[1724069265040,3.8602,2590.6,2589.9,5.8029]
[1724069265716,3.8602,2590.6,2590.0,2.3798]
[1724069265914,3.8602,2590.6,2590.0,3.16591565]
[1724069266099,3.8602,2590.6,2590.1,3.0]
[1724069266825,3.86027,2590.5,2590.1,3.0]
[1724069267033,3.86027,2590.5,2590.0,5.3798]
[1724069268053,3.86014,2590.6,2590.1,2.4354]
[1724069268200,3.86014,2590.6,2590.1,5.4354]
[1724069269337,3.86014,2590.6,2590.2,2.4552]
[1724069269545,0.10516817,2590.5,2590.3,0.42760565]
[1724069269747,0.10516817,2590.5,2590.3,3.0]
[1724069270243,0.10516817,2590.5,2590.2,2.4552]
[1724069272638,3.86011,2590.6,2590.2,2.4552]
[1724069272843,0.10516817,2590.4,2590.2,2.4552]
[1724069273045,3.86011,2590.6,2590.2,2.4552]
[1724069273260,0.10516817,2590.3,2590.2,2.4552]
[1724069273731,3.85968,2590.9,2590.2,2.4552]
[1724069273938,3.85961,2591.0,2590.3,0.24552]
[1724069273939,3.96499817,2590.8,2590.3,0.24552]
[1724069274133,3.96499817,2590.8,2590.3,3.24552]
[1724069274827,0.10516817,2590.8,2590.3,3.24552]
[1724069275030,0.10516817,2590.8,2590.4,0.570072]
[1724069275237,3.85961,2591.0,2590.5,2.2832]
[1724069275450,0.10516817,2590.7,2590.5,5.2832]
[1724069275617,3.85929,2591.2,2590.5,5.96849179]
[1724069275820,0.1054756,2590.6,2590.5,5.96849179]
[1724069276171,0.1054756,2590.6,2590.5,6.44129365]
[1724069276316,3.85902,2591.4,2590.5,6.44129365]
[1724069276516,0.10558578,2591.3,2590.7,2.4037]
[1724069276823,7.29,2591.8,2591.0,4.031]
[1724069277047,7.71658,2591.9,2591.0,4.031]
[1724069277048,3.85825,2591.9,2591.2,2.4037]
[1724069277255,0.10558578,2591.7,2591.2,2.4037]
[1724069277468,3.85825,2591.9,2591.2,2.4037]
[1724069277763,3.85839,2591.8,2591.2,2.4037]
[1724069277975,3.96397578,2591.8,2591.2,2.4037]
[1724069279430,0.10558578,2591.8,2591.2,2.4037]
[1724069279626,0.10558578,2591.8,2591.2,3.36928565]
[1724069279833,0.10558578,2591.8,2591.3,3.0]
[1724069280374,0.10558578,2591.8,2591.4,2.4456]
[1724069280728,7.29,2592.3,2591.3,3.0]
[1724069280729,3.85847,2591.7,2591.3,3.0]
[1724069280935,0.10710443,2591.6,2591.3,3.0]
[1724069281243,3.85825,2591.9,2591.3,3.0]
[1724069281439,0.10710443,2591.5,2591.3,3.0]
[1724069281658,3.85833,2591.8,2591.3,3.4581]
[1724069281840,0.10710443,2591.4,2591.3,3.4581]
[1724069282175,0.10710443,2591.4,2591.3,3.0]
[1724069282471,3.85825,2591.9,2591.2,2.4456]
[1724069282631,0.10710443,2591.4,2591.2,2.4456]
[1724069282832,3.85825,2591.9,2591.3,0.54456]
[1724069283031,3.85833,2591.8,2591.3,3.0]
[1724069283368,3.85856,2591.7,2591.2,2.4456]
[1724069283671,3.8587,2591.6,2591.2,2.4456]
[1724069284173,3.96590443,2591.5,2590.9,5.296]
[1724069284324,0.10710443,2591.5,2590.9,5.296]
[1724069284529,3.85832,2591.8,2590.9,5.296]
[1724069284743,3.96565443,2591.7,2590.9,5.296]
[1724069284943,3.96565443,2591.7,2591.0,0.5846]
[1724069285894,3.85864,2591.6,2591.0,0.5846]
[1724069286347,0.10710443,2591.5,2591.0,0.5846]
[1724069287056,0.10710443,2591.5,2591.1,2.4001]
[1724069287239,0.10710443,2591.5,2591.2,0.29847]
[1724069287442,3.85833,2591.8,2591.2,0.29847]
[1724069287642,0.10710443,2591.4,2591.2,3.29847]
[1724069287854,3.85833,2591.8,2591.2,3.0]
[1724069288084,0.10710443,2591.3,2591.1,5.4001]
[1724069288298,2.4973,2592.0,2591.1,5.4001]
[1724069288299,3.85856,2591.7,2591.1,5.4001]
[1724069288477,3.85873,2591.6,2591.1,2.4001]
[1724069288658,3.85882,2591.5,2591.1,2.4001]
[1724069289238,0.10710443,2591.4,2591.1,2.4001]
[1724069289489,3.85909,2591.3,2590.9,2.4296]
[1724069289892,3.85887,2591.5,2590.9,2.4296]
[1724069290095,0.10710443,2591.2,2590.9,3.39657]
[1724069290391,0.10710443,2591.1,2590.9,3.39657]
[1724069290893,3.85877,2591.5,2591.0,3.0]
[1724069291056,3.85862,2591.6,2591.0,3.339657]
[1724069291696,2.3992,2591.8,2591.0,3.339657]
[1724069291697,3.96594443,2591.5,2591.0,3.0]
[1724069291843,3.85895,2591.4,2590.9,2.4296]
[1724069292045,0.10710443,2591.5,2590.9,2.4296]
[1724069292359,0.10710443,2591.4,2591.0,0.54296]
[1724069292550,0.10710443,2591.4,2591.0,3.54296]
[1724069292751,3.85826,2591.9,2591.1,2.2766]
[1724069293056,0.10710443,2591.3,2591.1,5.2766]
[1724069293257,3.85826,2591.9,2591.1,5.2766]
[1724069293463,0.10666407,2591.2,2591.1,5.2766]
[1724069293660,3.85813,2592.0,2591.1,5.8266]
[1724069293862,0.10666407,2591.8,2591.2,1.53576]
[1724069294074,3.85811,2592.0,2591.2,4.53576]
[1724069294259,0.10666407,2591.7,2591.2,4.53576]
[1724069294468,3.85811,2592.0,2591.3,0.43792565]
[1724069294469,3.8584,2591.8,2591.3,0.43792565]
[1724069294671,0.10666407,2591.6,2591.2,3.0]
[1724069294854,3.85813,2592.0,2591.1,5.2766]
[1724069294855,3.85878,2591.5,2591.1,5.2766]
[1724069295070,3.96544407,2591.5,2591.1,5.2766]
[1724069295906,3.8592,2591.3,2591.1,3.0]
[1724069296046,3.85915,2591.3,2591.1,3.0]
[1724069296246,3.85908,2591.3,2590.9,2.2519]
[1724069296490,0.10666407,2591.2,2590.9,2.2519]
[1724069296806,3.85908,2591.3,2590.9,2.2519]
[1724069296959,3.85892,2591.4,2590.9,3.18019]
[1724069297294,0.10666407,2591.2,2591.0,3.0]
[1724069297458,3.85873,2591.6,2591.1,0.49539565]
[1724069298288,3.85847,2591.7,2591.1,0.49539565]
[1724069298792,3.85874,2591.6,2591.0,2.99875282]
[1724069298992,3.85874,2591.6,2590.9,2.2519]
[1724069298993,3.85883,2591.5,2590.9,2.2519]
[1724069299376,6.20792,2592.1,2590.9,2.2519]
[1724069299377,3.8585,2591.7,2591.0,0.55]
[1724069299680,0.10666407,2591.4,2591.1,2.3451]
[1724069300108,3.85833,2591.8,2591.1,2.3451]
[1724069300400,3.85839,2591.8,2591.2,6.70501]
[1724069300694,3.85839,2591.8,2591.2,6.4155]
[1724069300695,0.10666407,2591.7,2591.2,6.4155]
[1724069300853,0.10666407,2591.7,2591.3,3.0]
[1724069301204,3.85803,2592.0,2591.5,2.3845]
[1724069301350,0.10666407,2591.6,2591.5,5.3845]
[1724069301551,3.85803,2592.0,2591.5,5.3845]
[1724069301747,0.10666407,2591.6,2591.5,2.3845]
[1724069301982,0.771579,2592.0,2591.5,2.3845]
[1724069302182,0.10683211,2591.6,2591.5,2.3845]
[1724069302389,3.85842,2591.8,2591.5,2.3845]
[1724069302390,3.85836,2591.8,2591.5,2.3845]
[1724069302591,0.10683211,2591.6,2591.5,2.3845]
[1724069302758,3.85847,2591.7,2591.5,2.3845]
[1724069302961,0.10683211,2591.6,2591.5,2.3845]
[1724069303161,0.10683211,2591.6,2591.3,5.4558]
[1724069303865,3.96552211,2591.6,2591.3,5.4558]
[1724069304128,3.96552211,2591.6,2591.3,2.4558]
[1724069304269,3.8588,2591.5,2591.3,2.4558]
[1724069304479,0.10683211,2591.6,2591.3,2.4558]
[1724069304778,0.10683211,2591.5,2591.3,2.4558]
[1724069305798,3.85836,2591.8,2591.3,2.4558]
[1724069305957,0.10683211,2591.4,2591.3,2.4558]
[1724069306158,3.85836,2591.8,2591.3,2.4558]
[1724069306352,7.71677,2591.8,2591.3,2.4558]
[1724069306657,0.10683211,2591.7,2591.3,2.4558]
[1724069307204,0.10691324,2591.6,2591.3,2.4558]
[1724069307361,3.85836,2591.8,2591.3,2.4558]
[1724069307700,0.10691324,2591.7,2591.3,2.4558]
[1724069307998,3.85836,2591.8,2591.3,2.4558]
[1724069308195,0.10691324,2591.6,2591.3,2.4558]
[1724069308406,0.10691324,2591.6,2591.0,3.0]
[1724069308407,3.85856,2591.7,2591.0,5.469]
[1724069308587,3.96567324,2591.5,2591.0,5.469]
[1724069308754,3.85876,2591.5,2591.0,5.469]
[1724069309096,0.10691324,2591.4,2591.0,5.469]
[1724069309484,3.85862,2591.6,2591.0,5.469]
[1724069310000,0.10691324,2591.5,2591.0,5.469]
[1724069310382,3.96574324,2591.5,2591.0,5.469]
[1724069312014,0.10691324,2591.5,2591.0,5.469]
[1724069313809,3.96568324,2591.5,2591.0,5.469]
[1724069314208,0.10691324,2591.5,2591.0,5.469]
[1724069316512,0.10691324,2591.5,2591.2,4.031]
[1724069316696,0.10691324,2591.5,2591.3,3.0]
[1724069316880,3.85832,2591.8,2591.3,3.0]
[1724069317083,0.1062169,2591.4,2591.3,3.0]
[1724069317285,0.1062169,2591.4,2591.1,2.3385]
[1724069317286,3.859,2591.4,2590.9,7.2401]
[1724069317472,3.85921,2591.2,2590.9,7.2401]
[1724069317673,3.85921,2591.2,2591.0,3.0]
[1724069317872,0.1062169,2591.1,2591.0,3.0]
[1724069319247,3.85975,2590.9,2590.4,2.3419]
[1724069319446,3.85961,2591.0,2590.4,2.3419]
[1724069319813,0.10611835,2590.9,2590.4,2.3419]
[1724069321244,3.96580835,2590.9,2590.4,2.3419]
[1724069324279,0.88865919,2590.9,2590.4,2.3419]
[1724069324633,4.74840919,2590.9,2590.4,2.3419]
[1724069325003,3.86008,2590.7,2590.1,2.3271]
[1724069325206,7.7207,2590.5,2589.9,2.3271]
[1724069325479,3.86035,2590.5,2589.9,2.3271]
[1724069325660,0.49180741,2590.6,2589.9,2.3271]
[1724069325661,3.86052,2590.4,2589.9,2.3271]
[1724069325843,3.96631941,2590.4,2589.7,7.2401]
[1724069326175,7.82680941,2590.4,2589.7,7.2401]
[1724069326475,0.10578781,2590.3,2589.7,7.2401]
[1724069326694,0.10578781,2590.3,2589.7,8.19682]
[1724069326978,3.96634781,2590.3,2589.7,8.19682]
[1724069327127,3.96634781,2590.3,2589.8,3.0]
[1724069327333,0.10578781,2590.3,2589.8,3.0]
[1724069327680,3.96635781,2590.3,2589.8,3.0]
[1724069327888,4.77688566,2590.3,2589.8,3.0]
[1724069328086,0.91631566,2590.3,2589.8,3.0]
[1724069328240,0.10578781,2590.3,2589.8,3.0]
[1724069329662,3.96635781,2590.3,2589.8,3.0]
[1724069333139,0.10578781,2590.3,2589.8,3.0]
[1724069333341,3.86042,2590.4,2589.8,3.0]
[1724069333643,0.10475537,2590.3,2589.8,3.0]
[1724069336246,0.10475537,2590.3,2589.9,2.3383]
[1724069336590,11.14975,2590.9,2590.1,2.2965]
[1724069336795,0.10475537,2590.2,2590.1,5.2965]
[1724069336947,7.29,2590.9,2590.3,2.2965]
[1724069337150,3.85946,2591.1,2590.4,0.28465]
[1724069337788,0.10475537,2591.0,2590.4,3.28465]
[1724069338299,3.96434537,2591.0,2590.4,3.28465]
[1724069338470,0.10475537,2591.0,2590.5,0.961215]
[1724069340454,0.10475537,2591.0,2590.4,3.0]
[1724069340455,3.96436537,2591.0,2590.4,3.0]
[1724069340650,7.71983,2590.8,2590.3,5.2965]
[1724069340893,7.71983,2590.8,2590.3,2.2965]
[1724069340894,1.011883,2590.7,2590.3,2.2965]
[1724069341249,0.10492313,2590.6,2590.3,2.2965]
[1724069341453,3.85953,2591.0,2590.3,2.2965]
[1724069341656,3.85938,2591.1,2590.3,2.2965]
[1724069341657,0.10513779,2590.5,2590.3,2.2965]
[1724069341902,3.85938,2591.1,2590.4,0.22965]
[1724069342105,3.85938,2591.1,2590.4,3.22965]
[1724069342458,3.85938,2591.1,2590.5,2.3805]
[1724069342692,3.85915,2591.3,2590.6,0.63820822]
[1724069343008,3.85922,2591.2,2590.6,0.63820822]
[1724069343575,3.85938,2591.1,2590.5,2.3805]
[1724069343888,3.85921,2591.2,2590.6,0.07719346]
[1724069344275,3.85921,2591.2,2590.5,5.3805]
[1724069344474,3.85921,2591.2,2590.5,6.344615]
[1724069344705,3.85915,2591.3,2590.6,2.2545]
[1724069344706,0.1051436,2591.1,2590.6,2.2545]
[1724069345004,3.85915,2591.3,2590.6,2.2545]
[1724069345185,3.85915,2591.3,2590.7,0.45957065]
[1724069345508,3.9644436,2591.2,2590.6,2.2545]
[1724069345676,3.85937,2591.1,2590.6,2.2545]
[1724069346016,3.85962,2591.0,2590.6,2.2545]
[1724069346223,0.1051436,2591.0,2590.6,2.2545]
[1724069346708,3.85939,2591.1,2590.6,2.2545]
[1724069347003,0.1051436,2590.9,2590.6,2.2545]
[1724069347217,0.385939,2591.0,2590.6,2.2545]
[1724069347355,0.1051436,2590.8,2590.6,2.2545]
[1724069347671,3.85966,2590.9,2590.6,2.2545]
[1724069347879,0.1051436,2590.7,2590.6,2.2545]
[1724069348413,3.85988,2590.8,2590.6,2.2545]
[1724069348561,3.86025,2590.6,2590.3,2.2727]
[1724069348763,3.9651036,2590.7,2590.3,2.2727]
[1724069349100,0.1051436,2590.6,2590.3,2.2727]
[1724069349320,3.86018,2590.6,2590.3,2.2727]
[1724069349523,3.86028,2590.5,2590.3,2.2727]
[1724069350088,0.1051436,2590.4,2590.3,2.2727]
[1724069350288,3.85996,2590.7,2590.3,2.2727]
[1724069350600,0.10512619,2590.4,2590.3,2.2727]
[1724069350909,0.10512619,2590.4,2590.3,6.8537]
[1724069351099,3.8596,2591.0,2590.3,10.83907]
[1724069351427,3.8596,2591.0,2590.4,3.55]
[1724069351981,7.71922,2591.0,2590.4,3.55]
[1724069352181,3.8596,2591.0,2590.4,3.55]
[1724069352379,3.85959,2591.0,2590.4,3.55]
[1724069352636,7.71918,2591.0,2590.4,3.55]
[1724069352781,3.85959,2591.0,2590.4,3.98831565]
[1724069354688,3.85937,2591.1,2590.4,3.98831565]
[1724069355022,3.85953,2591.0,2590.5,2.2916]
[1724069355729,3.85982,2590.8,2590.5,2.2916]
[1724069356091,3.85953,2591.0,2590.5,2.2916]
[1724069356092,7.71918,2591.0,2590.5,2.2916]
[1724069356435,3.85968,2590.9,2590.5,2.2916]
[1724069357944,3.85953,2591.0,2590.5,2.2916]
[1724069358249,7.71916,2591.0,2590.5,2.2916]
[1724069358455,3.85953,2591.0,2590.5,2.2916]
[1724069359058,3.85953,2591.0,2590.5,3.22386]
[1724069359413,7.71915,2591.0,2590.5,3.22386]
[1724069359611,0.1052596,2590.9,2590.5,3.22386]
[1724069361157,0.1052596,2590.9,2590.7,2.321]
[1724069361357,0.1052596,2590.9,2590.8,0.49142565]
[1724069361561,3.859,2591.4,2590.8,3.49142565]
[1724069361858,3.85848,2591.7,2591.0,2.3792]
[1724069362059,4.44624007,2591.8,2591.2,2.411]
[1724069362060,7.71688,2591.8,2591.2,2.411]
[1724069362261,2.4441,2592.0,2591.2,6.99081751]
[1724069362262,3.85812,2592.0,2591.2,6.99081751]
[1724069362571,3.85832,2591.8,2591.3,3.55]
[1724069362863,7.71627,2592.0,2591.3,4.07572557]
[1724069363366,7.71627,2592.0,2591.4,2.3938]
[1724069363926,3.85812,2592.0,2591.4,2.3938]
[1724069364223,3.85783,2592.2,2591.4,2.3938]
[1724069364224,3.85783,2592.2,2591.5,2.3991]
[1724069364453,7.71563,2592.2,2591.7,2.3991]
[1724069364669,3.8578,2592.2,2591.7,2.3991]
[1724069365162,3.8578,2592.2,2591.7,5.3991]
[1724069366596,3.85758,2592.3,2591.8,0.07715893]
[1724069367159,2.4186,2592.9,2591.9,2.3853]
[1724069367366,2.4186,2592.9,2591.9,5.3853]
[1724069367558,3.85722,2592.6,2591.9,5.3853]
[1724069367782,3.85728,2592.5,2591.9,5.3853]
[1724069367942,7.71409,2592.7,2592.0,0.07714886]
[1724069368153,3.85698,2592.7,2592.1,2.3853]
[1724069368459,3.85698,2592.7,2592.1,5.3853]
[1724069369494,7.71407,2592.7,2592.1,5.3853]
[1724069369659,3.85698,2592.7,2592.1,5.3853]
[1724069370073,3.85735,2592.5,2592.1,5.3853]
[1724069370277,6.27545,2592.8,2592.1,2.3853]
[1724069370498,3.8575,2592.4,2592.1,2.3853]
[1724069371164,0.1053582,2592.3,2592.1,2.3853]
[1724069371925,0.1053582,2592.2,2592.1,2.3853]
[1724069372209,3.85686,2592.8,2592.1,2.3853]
[1724069372345,3.85686,2592.8,2592.3,2.3853]
[1724069372545,3.85686,2592.8,2592.3,5.3853]
[1724069372546,0.1071261,2592.7,2592.3,5.3853]
[1724069372846,0.1071319,2592.6,2592.3,2.3853]
[1724069373054,3.857,2592.7,2592.3,2.3853]
[1724069373382,0.1071319,2592.5,2592.3,2.3853]
[1724069373560,3.857,2592.7,2592.3,2.3853]
[1724069373749,0.10718403,2592.4,2592.3,2.3853]
[1724069373948,3.857,2592.7,2592.3,2.62383]
[1724069374247,3.857,2592.7,2592.3,2.3853]
[1724069374492,0.10718403,2592.6,2592.3,2.3853]
[1724069374977,3.85739,2592.5,2592.3,2.3853]
[1724069375149,3.85745,2592.4,2592.0,2.3853]
[1724069375353,3.96462824,2592.4,2592.0,2.3853]
[1724069375869,3.96462824,2592.4,2591.9,3.0]
[1724069376068,3.85758,2592.3,2591.9,3.0]
[1724069380146,7.71528,2592.3,2592.0,2.3853]
[1724069380355,7.71526,2592.3,2592.0,2.3853]
[1724069380845,0.771526,2592.3,2591.8,2.4906]
[1724069381144,3.85744,2592.4,2591.5,4.031]
[1724069381145,3.85815,2592.0,2591.5,2.4906]
[1724069381300,4.629766,2592.0,2591.5,2.4906]
[1724069381824,3.85832,2591.8,2591.5,2.4906]
[1724069382201,3.85854,2591.7,2591.5,2.4906]
[1724069382541,3.85854,2591.7,2591.2,2.4906]
[1724069382542,3.85848,2591.7,2591.2,2.4906]
[1724069384626,3.85846,2591.8,2591.2,2.4906]
[1724069384836,3.85846,2591.8,2591.2,3.03966]
[1724069385017,3.85846,2591.8,2591.3,3.0]
[1724069385542,3.85843,2591.8,2591.2,6.5216]
[1724069385858,7.71679,2591.8,2591.3,3.0]
[1724069386002,3.85839,2591.8,2591.3,3.0]
[1724069386535,3.85812,2592.0,2591.3,3.95216]
[1724069386744,3.85776,2592.2,2591.4,2.3665]
[1724069386903,3.85776,2592.2,2591.6,2.3055]
[1724069387101,3.85805,2592.0,2591.6,2.3055]
[1724069387302,7.71562,2592.2,2591.6,2.3055]
[1724069387506,7.71561,2592.2,2591.6,2.3055]
[1724069387751,9.216171,2592.2,2591.6,2.3055]
[1724069388048,5.358321,2592.2,2591.6,2.3055]
[1724069388254,3.85776,2592.2,2591.6,2.3055]
[1724069388452,3.85776,2592.2,2591.6,5.3055]
[1724069388656,3.8575,2592.4,2591.6,5.3055]
[1724069389239,3.85775,2592.2,2591.6,5.3055]
[1724069389436,3.85775,2592.2,2591.7,0.93365]
[1724069389649,3.85802,2592.0,2591.7,3.0]
[1724069389913,0.10657565,2591.9,2591.7,3.0]
[1724069390109,0.10657565,2591.9,2591.6,5.3055]
[1724069390961,0.10657565,2591.9,2591.6,2.3055]
[1724069391283,3.96481565,2591.9,2591.6,2.3055]
[1724069391575,3.96481565,2591.9,2591.3,3.0]
[1724069391576,3.85843,2591.8,2591.3,5.4641]
[1724069391786,7.71684,2591.8,2591.3,5.4641]
[1724069391921,0.10651771,2591.7,2591.3,5.4641]
[1724069392124,0.10651771,2591.7,2591.4,2.3755]
[1724069392373,3.85782,2592.2,2591.6,2.2721]
[1724069392534,3.85782,2592.2,2591.6,5.2721]
[1724069392981,3.85729,2592.5,2591.6,5.2721]
[1724069393135,3.85804,2592.0,2591.6,5.2721]
[1724069394228,3.85787,2592.1,2591.6,6.20241]
[1724069394475,3.85764,2592.3,2591.6,5.2721]
[1724069394680,3.85773,2592.2,2591.6,6.20241]
[1724069395843,3.85788,2592.1,2591.6,6.20241]
[1724069396056,3.85788,2592.1,2591.6,5.2721]
[1724069396239,3.85809,2592.0,2591.6,5.2721]
[1724069396839,3.85788,2592.1,2591.6,5.2721]
[1724069401090,7.71587,2592.1,2591.6,5.2721]
[1724069401771,3.85804,2592.0,2591.6,5.2721]
[1724069402679,3.85792,2592.1,2591.6,6.20241]
[1724069403303,3.85759,2592.3,2591.7,2.2709]
[1724069403600,3.85772,2592.2,2591.7,5.2709]
[1724069403784,4.629245,2592.2,2591.7,2.2709]
[1724069404596,0.10662784,2592.1,2591.7,2.2709]
[1724069406128,3.96450784,2592.1,2591.7,2.2709]
[1724069406337,3.85803,2592.0,2591.7,2.2709]
[1724069406837,3.8582,2591.9,2591.7,2.2709]
[1724069407041,3.96489738,2591.9,2591.7,2.2709]
[1724069407636,3.85832,2591.8,2591.5,2.2699]
[1724069407837,0.88899012,2591.9,2591.1,2.4686]
[1724069407838,3.85892,2591.4,2591.1,2.4686]
[1724069408341,3.85921,2591.2,2591.1,2.4686]
[1724069408482,3.85944,2591.1,2590.8,2.3538]
[1724069408686,3.85952,2591.0,2590.8,2.3538]
[1724069408885,0.10646556,2591.0,2590.8,2.3538]
[1724069409928,3.96609556,2591.0,2590.8,2.3538]
[1724069410100,3.96609556,2591.0,2590.4,2.3195]
[1724069410101,4.36270512,2591.0,2590.4,2.3195]
[1724069410453,7.82571556,2591.0,2590.4,2.3195]
[1724069410742,7.82572556,2591.0,2590.4,2.3195]
[1724069411042,3.96608556,2591.0,2590.4,2.3195]
[1724069411636,3.96608556,2591.0,2590.4,5.3195]
[1724069411792,3.96608556,2591.0,2590.4,6.25455]
[1724069412347,0.10646556,2591.0,2590.5,2.2726]
[1724069412835,3.85931,2591.2,2590.5,5.2726]
[1724069413148,3.85902,2591.4,2590.7,2.2726]
[1724069413457,0.10219708,2591.1,2590.8,2.8226]
[1724069413753,7.71745,2591.6,2590.8,2.8226]
[1724069413754,0.10219708,2591.0,2590.9,2.2726]
[1724069413894,0.10219708,2591.0,2590.9,9.3036]
[1724069414235,3.85847,2591.7,2590.9,9.8536]
[1724069414447,0.10223777,2591.0,2590.9,9.3036]
[1724069414642,3.85864,2591.6,2590.9,9.8536]
[1724069414804,3.85864,2591.6,2590.9,9.3036]
[1724069415010,0.10223777,2591.5,2591.0,0.55]
[1724069415208,7.71733,2591.6,2591.0,3.55]
[1724069415431,0.10223777,2591.4,2591.0,3.55]
[1724069415611,3.85864,2591.6,2591.0,4.53536]
[1724069416098,0.10223777,2591.5,2591.0,4.53536]
[1724069417731,3.85902,2591.4,2591.0,3.0]
[1724069418030,3.96107777,2591.5,2591.0,3.0]
[1724069418211,3.85884,2591.5,2591.0,3.0]
[1724069418415,0.10223777,2591.4,2591.0,3.0]
[1724069420995,3.96117777,2591.4,2591.0,3.0]
[1724069423435,3.96117777,2591.4,2591.1,2.3856]
[1724069423631,3.96117777,2591.4,2591.1,5.3856]
[1724069424547,7.82020777,2591.4,2591.1,5.3856]
[1724069425181,7.82020777,2591.4,2591.1,2.3856]
[1724069426249,3.96117777,2591.4,2591.1,2.3856]
[1724069426747,3.85913,2591.3,2591.1,2.3856]
[1724069427075,0.88445454,2591.3,2590.9,2.3122]
[1724069427225,3.8599,2590.8,2590.6,2.3122]
[1724069427629,0.10237727,2590.7,2590.6,2.3122]
[1724069427873,0.10237727,2590.7,2590.3,7.2401]
[1724069428073,3.85989,2590.8,2590.4,2.2822]
[1724069428226,3.85996,2590.7,2590.4,2.2822]
[1724069428432,3.96223265,2590.7,2590.4,2.2822]
[1724069428636,3.85996,2590.7,2590.4,2.2822]
[1724069429593,3.85996,2590.7,2590.4,5.2822]
[1724069429744,3.85982,2590.8,2590.4,5.2822]
[1724069430140,0.10170882,2590.7,2590.4,5.2822]
[1724069430390,3.85982,2590.8,2590.4,5.2822]
[1724069430756,0.10170882,2590.7,2590.4,5.2822]
[1724069431140,3.85966,2590.9,2590.4,5.2822]
[1724069431381,0.10169719,2590.6,2590.4,5.2822]
[1724069431548,13.16841,2591.6,2590.4,5.2822]
[1724069431549,3.85929,2591.2,2590.6,2.2777]
[1724069431754,3.85929,2591.2,2590.7,2.2777]
[1724069432161,3.85929,2591.2,2590.7,5.2777]
[1724069432559,3.85929,2591.2,2590.8,3.0]
[1724069432757,3.85937,2591.1,2590.7,2.2777]
[1724069433275,3.85916,2591.3,2590.7,2.2777]
[1724069434183,3.85924,2591.2,2590.7,2.2777]
[1724069434647,0.10179602,2591.1,2590.7,2.2777]
[1724069434849,0.10179602,2591.1,2590.7,3.26357]
[1724069435083,0.10179602,2591.1,2590.8,3.0]
[1724069435503,7.71833,2591.3,2590.8,3.0]
[1724069435795,0.10179602,2591.2,2590.8,3.0]
[1724069436129,3.85916,2591.3,2590.8,3.0]
[1724069436495,3.85932,2591.2,2590.8,3.0]
[1724069436853,0.10179602,2591.1,2590.7,2.2777]
[1724069437348,3.96123602,2591.1,2590.7,2.2777]
[1724069437542,0.10179602,2591.1,2590.7,2.2777]
[1724069437898,3.96116602,2591.1,2590.7,2.2777]